fUST/lending_fUST_20250228
["ID","MTS","AMOUNT","RATE_DAILY","PERIOD"]
[354862446,1740754238843,-230.165041,0.000479,110]
[354862447,1740754238858,-230.165041,0.000479,110]
[354862448,1740754238873,-151.0,0.000479,120]
[354862449,1740754238886,-151.0,0.000479,120]
[354862450,1740754238901,-415.976708,0.000479,2]
[354862451,1740754238916,-415.976708,0.000479,2]
[354862452,1740754238930,-151.0,0.000479,120]
[354862453,1740754238944,-151.0,0.000479,120]
[354862454,1740754238959,-250.415559,0.000479,120]
[354862455,1740754238973,-301.516487,0.000479,120]
[354862456,1740754238990,-301.516487,0.000479,120]
[354862457,1740754239004,-378.752849,0.000479,120]
[354862458,1740754239018,-378.752849,0.000479,120]
[354862459,1740754239033,-156.008526,0.000479,120]
[354862460,1740754239048,-365.455406,0.000479,120]
[354862461,1740754239059,-365.455406,0.000479,120]
[354862462,1740754239069,-384.19083915,0.00047969,2]
[354862463,1740754239078,-755.0,0.00048,2]
[354862464,1740754239088,-50000.0,0.00048,30]
[354862465,1740754239292,-500.0,0.0004808,10]
[354862466,1740754239306,-500.0,0.0004808,10]
[354862467,1740754239318,-151.0,0.000481,23]
[354862468,1740754239329,-384.19083915,0.0004824,2]
[354862469,1740754239339,-6585.5688999,0.000485,30]
[354862470,1740754239350,-384.19083915,0.0004851,2]
[354862471,1740754239361,-315.78,0.000486,30]
[354862472,1740754239370,-384.19083915,0.0004878,2]
[354862473,1740754239381,-500.0,0.00048873,10]
[354862475,1740754239391,-500.0,0.00048873,10]
[354862477,1740754239400,-150.935763,0.00048873,10]
[354862479,1740754239410,-198.657612,0.00048873,2]
[354862480,1740754239419,-500.0,0.00048873,10]
[354862482,1740754239429,-500.0,0.00048873,2]
[354862483,1740754239439,-500.0,0.00048873,10]
[354862484,1740754239448,-500.0,0.00048873,10]
[354862485,1740754239458,-500.0,0.00048873,10]
[354862486,1740754239468,-500.0,0.00048873,2]
[354862487,1740754239477,-500.0,0.00048873,10]
[354862488,1740754239487,-500.0,0.00048873,10]
[354862491,1740754239498,-500.0,0.00048873,10]
[354862494,1740754239507,-160.37406782,0.00048879,30]
[354862496,1740754239517,-1000.0,0.00048879,10]
[354862497,1740754239527,-50000.0,0.0004888,3]
[354862498,1740754239536,-308665.45119502,0.0004888,30]
[354862499,1740754239546,-151.0,0.0004888,120]
[354862500,1740754239556,-151.0,0.0004888,120]
[354862501,1740754239566,-151.0,0.0004888,120]
[354862502,1740754239576,-299.90747,0.0004888,120]
[354862503,1740754239586,-299.90747,0.0004888,120]
[354862504,1740754239596,-501.032863,0.0004888,120]
[354862505,1740754239606,-501.032863,0.0004888,120]
[354862506,1740754239615,-230.165041,0.0004888,110]
[354862507,1740754239624,-230.165041,0.0004888,110]
[354862508,1740754239634,-1597.347059,0.0004888,120]
[354862509,1740754239643,-1597.347059,0.0004888,120]
[354862510,1740754239652,-151.0,0.0004888,120]
[354862511,1740754239662,-151.0,0.0004888,120]
[354862512,1740754239671,-415.976708,0.0004888,2]
[354862513,1740754239681,-415.976708,0.0004888,2]
[354862514,1740754239691,-151.0,0.0004888,120]
[354862515,1740754239701,-151.0,0.0004888,120]
[354862516,1740754239711,-301.516487,0.0004888,120]
[354862518,1740754239720,-301.516487,0.0004888,120]
[354862520,1740754239730,-378.752849,0.0004888,120]
[354862521,1740754239741,-151.0,0.0004888,120]
[354862522,1740754239751,-378.752849,0.0004888,120]
[354862523,1740754239761,-233.69533,0.0004888,120]
[354862524,1740754239770,-151.0,0.0004888,120]
[354862526,1740754239780,-151.0,0.0004888,120]
[354862528,1740754239790,-151.0,0.0004888,120]
[354862529,1740754239799,-365.455406,0.0004888,120]
[354862530,1740754239808,-365.455406,0.0004888,120]
[354862531,1740754239817,-713.148916,0.0004888,120]
[354862532,1740754239827,-713.148916,0.0004888,120]
[354862533,1740754239836,-713.148916,0.0004888,120]
[354862534,1740754239846,-713.148916,0.0004888,120]
[354862535,1740754239856,-151.0,0.000489,21]
[354862536,1740754239866,-151.0,0.00048961,2]
[354862538,1740754239875,-151.0,0.00048961,2]
[354862539,1740754239885,-83033.94033651,0.0004899,2]
[354862540,1740754239894,-151.0,0.0004899,120]
[354862541,1740754239903,-151.0,0.0004899,120]
[354862542,1740754239912,-151.0,0.0004899,120]
[354862543,1740754239921,-151.0,0.0004899,120]
[354862544,1740754239931,-151.0,0.0004899,120]
[354862545,1740754239940,-151.0,0.0004899,120]
[354862546,1740754239949,-176.350958,0.0004899,120]
[354862547,1740754239959,-151.0,0.0004899,120]
[354862548,1740754239968,-713.148916,0.0004899,120]
[354862549,1740754239978,-713.148916,0.0004899,120]
[354862550,1740754239988,-460.563521,0.00049,120]
[354862551,1740754240000,-460.563521,0.00049,120]
[354862552,1740754240009,-151.0,0.00049,120]
[354862554,1740754240020,-420.108685,0.00049,120]
[354862555,1740754240029,-420.108685,0.00049,120]
[354862557,1740754240040,-151.0,0.00049,120]
[354862559,1740754240050,-168.312557,0.00049,120]
[354862560,1740754240060,-299.90747,0.00049,120]
[354862561,1740754240070,-299.90747,0.00049,120]
[354862562,1740754240079,-501.032863,0.00049,120]
[354862563,1740754240089,-501.032863,0.00049,120]
[354862565,1740754240099,-230.165041,0.00049,110]
[354862566,1740754240109,-230.165041,0.00049,110]
[354862568,1740754240118,-151.0,0.00049,120]
[354862569,1740754240127,-151.0,0.00049,120]
[354862570,1740754240137,-415.976708,0.00049,2]
[354862571,1740754240146,-415.976708,0.00049,2]
[354862572,1740754240156,-151.0,0.00049,120]
[354862573,1740754240169,-151.0,0.00049,120]
[354862574,1740754240179,-301.516487,0.00049,120]
[354862575,1740754240189,-301.516487,0.00049,120]
[354862576,1740754240198,-378.752849,0.00049,120]
[354862577,1740754240210,-378.752849,0.00049,120]
[354862578,1740754240219,-365.455406,0.00049,120]
[354862579,1740754240229,-365.455406,0.00049,120]
[354862580,1740754240241,-166.1,0.00049509,2]
[354862581,1740754240253,-151.0,0.00049509,2]
[354862582,1740754240263,-151.0,0.000498,26]
[354862583,1740754240273,-151.0,0.000498,120]
[354862584,1740754240283,-1597.347059,0.000498,120]
[354862585,1740754240293,-1597.347059,0.000498,120]
[354862586,1740754240302,-300.0,0.0004988,2]
[354862587,1740754240314,-593.47,0.000499,30]
[354862588,1740754240324,-7334.73364773,0.00050008,120]
[354862589,1740754240334,-185.881,0.00050057,2]
[354862590,1740754240343,-151.0,0.00050057,2]
[354862591,1740754240353,-1000.0,0.00050179,7]
[354862592,1740754240363,-3217.18,0.000502,30]
[354862593,1740754240373,-4787.83,0.000502,30]
[354862594,1740754240383,-350.53900052,0.00050363,10]
[354862595,1740754240393,-151.0,0.000506,27]
[354862596,1740754240403,-151.0,0.00050605,2]
[354862597,1740754240414,-1489.53,0.000507,30]
[354862598,1740754240423,-160.816327,0.00050812,2]
[354862599,1740754240433,-561.311867,0.0005106,2]
[354862600,1740754240443,-151.0,0.00051153,2]
[354862601,1740754240453,-176.078419,0.00051165,2]
[354862602,1740754240463,-151.0,0.000514,24]
[354862603,1740754240473,-151.0,0.00051452,120]
[354862604,1740754240483,-1500.0,0.00051598,10]
[354862605,1740754240494,-302.0,0.00051701,2]
[354862606,1740754240504,-158.908,0.00051823,94]
[354862607,1740754240514,-50000.0,0.00052,3]
[354862608,1740754240525,-20009.739999,0.00052,30]
[354862609,1740754240535,-151.0,0.00052,120]
[354862610,1740754240545,-151.0,0.00052,120]
[354862611,1740754240554,-713.148916,0.00052,120]
[354862612,1740754240564,-713.148916,0.00052,120]
[354862613,1740754240574,-493.92007982,0.00052055,60]
[354862614,1740754240584,-85316.14,0.000521,30]
[354862615,1740754240593,-151.0,0.000521,120]
[354862616,1740754240602,-299.90747,0.000521,120]
[354862617,1740754240612,-299.90747,0.000521,120]
[354862618,1740754240621,-501.032863,0.000521,120]
[354862619,1740754240631,-501.032863,0.000521,120]
[354862620,1740754240640,-230.165041,0.000521,110]
[354862621,1740754240650,-230.165041,0.000521,110]
[354862622,1740754240660,-1597.347059,0.000521,120]
[354862623,1740754240670,-1597.347059,0.000521,120]
[354862624,1740754240680,-151.0,0.000521,120]
[354862625,1740754240689,-151.0,0.000521,120]
[354862626,1740754240699,-415.976708,0.000521,2]
[354862627,1740754240708,-415.976708,0.000521,2]
[354862628,1740754240718,-151.0,0.000521,120]
[354862629,1740754240728,-151.0,0.000521,120]
[354862630,1740754240738,-301.516487,0.000521,120]
[354862631,1740754240749,-301.516487,0.000521,120]
[354862632,1740754240759,-378.752849,0.000521,120]
[354862633,1740754240769,-151.0,0.000521,120]
[354862634,1740754240778,-378.752849,0.000521,120]
[354862635,1740754240787,-151.0,0.000521,120]
[354862636,1740754240796,-365.455406,0.000521,120]
[354862637,1740754240806,-365.455406,0.000521,120]
[354862638,1740754240816,-713.148916,0.000521,120]
[354862639,1740754240825,-713.148916,0.000521,120]
[354862640,1740754240835,-176.078419,0.00052136,35]
[354862641,1740754240845,-224.42985963,0.00052193,2]
[354862642,1740754240854,-151.0,0.000522,25]
[354862643,1740754240863,-1500.0,0.00052298,10]
[354862644,1740754240872,-593.47,0.000523,30]
[354862645,1740754240882,-500.0,0.00052388,7]
[354862646,1740754240891,-500.0,0.00052388,10]
[354862647,1740754240901,-500.0,0.00052602,30]
[354862648,1740754240911,-160.816327,0.00052825,2]
[354862649,1740754240920,-3217.18,0.000529,30]
[354862650,1740754240930,-4787.83,0.000529,30]
[354862651,1740754240940,-6241.57900155,0.000529,2]
[354862652,1740754240949,-544.28868427,0.00052973,10]
[354862653,1740754240959,-500.0,0.00052973,10]
[354862654,1740754240968,-50000.0,0.00053,3]
[354862655,1740754240977,-19607.61712864,0.00053,3]
[354862656,1740754240987,-498.779959,0.00053,120]
[354862657,1740754241000,-1109.0,0.00053,90]
[354862658,1740754241009,-300000.0,0.00053,120]
[354862659,1740754241019,-151.0,0.00053,120]
[354862660,1740754241028,-151.0,0.00053,120]
[354862661,1740754241039,-151.0,0.00053,120]
[354862662,1740754241048,-151.0,0.00053,120]
[354862663,1740754241058,-214.97904,0.00053,120]
[354862664,1740754241067,-151.0,0.00053,30]
[354862665,1740754241077,-257.531912,0.00053,120]
[354862666,1740754241087,-151.0,0.00053,120]
[354862667,1740754241097,-151.0,0.00053,120]
[354862668,1740754241107,-151.0,0.00053,120]
[354862669,1740754241117,-227.357506,0.00053,120]
[354862670,1740754241133,-227.357506,0.00053,120]
[354862671,1740754241143,-151.0,0.00053,120]
[354862672,1740754241152,-151.0,0.00053,120]
[354862673,1740754241163,-151.0,0.00053,120]
[354862674,1740754241172,-151.0,0.00053,120]
[354862675,1740754241183,-151.0,0.00053,120]
[354862676,1740754241195,-151.0,0.00053,120]
[354862677,1740754241205,-151.0,0.00053,120]
[354862678,1740754241216,-460.563521,0.00053,120]
[354862679,1740754241227,-460.563521,0.00053,120]
[354862680,1740754241237,-420.108685,0.00053,120]
[354862681,1740754241251,-420.108685,0.00053,120]
[354862682,1740754241262,-151.0,0.00053,120]
[354862683,1740754241276,-299.90747,0.00053,120]
[354862684,1740754241286,-299.90747,0.00053,120]
[354862685,1740754241297,-501.032863,0.00053,120]
[354862686,1740754241308,-501.032863,0.00053,120]
[354862687,1740754241318,-230.165041,0.00053,110]
[354862688,1740754241328,-230.165041,0.00053,110]
[354862689,1740754241339,-1597.347059,0.00053,120]
[354862690,1740754241348,-1597.347059,0.00053,120]
[354862691,1740754241358,-151.0,0.00053,120]
[354862692,1740754241368,-243.053682,0.00053,120]
[354862693,1740754241378,-415.976708,0.00053,2]
[354862694,1740754241388,-415.976708,0.00053,2]
[354862695,1740754241398,-151.0,0.00053,120]
[354862696,1740754241407,-151.0,0.00053,120]
[354862697,1740754241418,-301.516487,0.00053,120]
[354862698,1740754241428,-301.516487,0.00053,120]
[354862699,1740754241442,-378.752849,0.00053,120]
[354862700,1740754241456,-378.752849,0.00053,120]
[354862701,1740754241466,-151.0,0.00053,120]
[354862702,1740754241476,-378.752849,0.00053,120]
[354862703,1740754241589,-378.752849,0.00053,120]
[354862704,1740754241608,-1000.0,0.00053,28]
[354862705,1740754241619,-1000.0,0.00053,28]
[354862706,1740754241628,-1000.0,0.00053,28]
[354862707,1740754241638,-1000.0,0.00053,28]
[354862708,1740754241648,-1000.0,0.00053,28]
[354862709,1740754241658,-1000.0,0.00053,28]
[354862710,1740754241667,-1000.0,0.00053,28]
[354862711,1740754241678,-1000.0,0.00053,28]
[354862712,1740754241687,-1000.0,0.00053,28]
[354862713,1740754241697,-1000.0,0.00053,28]
[354862714,1740754241707,-1000.0,0.00053,28]
[354862715,1740754241717,-1000.0,0.00053,28]
[354862716,1740754241726,-1000.0,0.00053,28]
[354862717,1740754241736,-1000.0,0.00053,28]
[354862718,1740754241747,-1000.0,0.00053,28]
[354862719,1740754241758,-1000.0,0.00053,28]
[354862720,1740754241767,-1000.0,0.00053,28]
[354862721,1740754241777,-1000.0,0.00053,28]
[354862722,1740754241786,-1000.0,0.00053,28]
[354862723,1740754241797,-1000.0,0.00053,28]
[354862724,1740754241807,-1000.0,0.00053,28]
[354862725,1740754241816,-1000.0,0.00053,28]
[354862726,1740754241826,-1000.0,0.00053,28]
[354862727,1740754241836,-1000.0,0.00053,28]
[354862728,1740754241846,-1000.0,0.00053,28]
[354862729,1740754241855,-1000.0,0.00053,28]
[354862730,1740754241865,-1000.0,0.00053,28]
[354862731,1740754241874,-1000.0,0.00053,28]
[354862732,1740754241883,-1000.0,0.00053,28]
[354862733,1740754241892,-1000.0,0.00053,28]
[354862734,1740754241902,-1000.0,0.00053,28]
[354862735,1740754241912,-1000.0,0.00053,28]
[354862736,1740754241921,-1000.0,0.00053,28]
[354862737,1740754241930,-1000.0,0.00053,28]
[354862738,1740754241940,-1000.0,0.00053,28]
[354862739,1740754241950,-1000.0,0.00053,28]
[354862740,1740754241959,-1000.0,0.00053,28]
[354862741,1740754241969,-1000.0,0.00053,28]
[354862742,1740754241979,-1000.0,0.00053,28]
[354862743,1740754241988,-1000.0,0.00053,28]
[354862744,1740754242000,-1000.0,0.00053,28]
[354862745,1740754242009,-1000.0,0.00053,28]
[354862746,1740754242018,-1000.0,0.00053,28]
[354862747,1740754242027,-1000.0,0.00053,28]
[354862748,1740754242036,-1000.0,0.00053,28]
[354862749,1740754242046,-1000.0,0.00053,28]
[354862750,1740754242056,-1000.0,0.00053,28]
[354862751,1740754242066,-1000.0,0.00053,28]
[354862752,1740754242075,-151.0,0.00053,120]
[354862753,1740754242085,-1000.0,0.00053,28]
[354862754,1740754242095,-1000.0,0.00053,28]
[354862755,1740754242105,-1000.0,0.00053,28]
[354862756,1740754242114,-875.149021,0.00053,28]
[354862757,1740754242124,-365.455406,0.00053,120]
[354862758,1740754242134,-365.455406,0.00053,120]
[354862759,1740754242144,-365.455406,0.00053,120]
[354862760,1740754242153,-365.455406,0.00053,120]
[354862761,1740754242164,-713.148916,0.00053,120]
[354862762,1740754242176,-713.148916,0.00053,120]
[354862763,1740754242186,-713.148916,0.00053,120]
[354862764,1740754242196,-713.148916,0.00053,120]
[354862765,1740754242205,-500.0,0.0005315,35]
[354862766,1740754242218,-1489.53,0.000532,30]
[354862767,1740754242227,-151.0,0.000534,28]
[354862768,1740754242237,-1000.0,0.00053521,10]
[354862769,1740754242249,-1000.0,0.00053559,10]
[354862771,1740754242260,-496.9119254,0.000536,4]
[354862773,1740754242270,-500.0,0.00053698,40]
[354862775,1740754242280,-162.35314214,0.00053758,58]
[354862777,1740754242289,-50000.0,0.000538,3]
[354862779,1740754242299,-1007.63,0.000538,120]
[354862781,1740754242309,-151.0,0.000538,120]
[354862783,1740754242319,-460.563521,0.000538,120]
[354862784,1740754242329,-460.563521,0.000538,120]
[354862785,1740754242339,-420.108685,0.000538,120]
[354862786,1740754242348,-420.108685,0.000538,120]
[354862787,1740754242357,-713.148916,0.000538,120]
[354862788,1740754242367,-713.148916,0.000538,120]
[354862789,1740754242377,-800.0,0.00053887,7]
[354862790,1740754242386,-800.0,0.00053887,14]
[354862791,1740754242396,-800.0,0.00053887,21]
[354862792,1740754242406,-1238.42726914,0.00053887,28]
[354862793,1740754242416,-151.0,0.0005389,120]
[354862794,1740754242425,-168.528,0.000539,120]
[354862795,1740754242435,-5000.0,0.000539,30]
[354862796,1740754242445,-5000.0,0.000539,30]
[354862797,1740754242455,-5000.0,0.000539,30]
[354862798,1740754242464,-5000.0,0.000539,30]
[354862799,1740754242474,-5000.0,0.000539,30]
[354862800,1740754242484,-5000.0,0.000539,30]
[354862801,1740754242496,-5000.0,0.000539,30]
[354862802,1740754242506,-5000.0,0.000539,30]
[354862804,1740754242515,-151.0,0.000539,120]
[354862806,1740754242524,-151.0,0.000539,120]
[354862808,1740754242534,-151.0,0.000539,30]
[354862810,1740754242543,-157.854303,0.000539,120]
[354862813,1740754242552,-151.0,0.000539,120]
[354862816,1740754242562,-227.357506,0.000539,120]
[354862818,1740754242571,-227.357506,0.000539,120]
[354862821,1740754242581,-151.0,0.000539,120]
[354862823,1740754242590,-151.0,0.000539,120]
[354862826,1740754242599,-151.0,0.000539,120]
[354862830,1740754242609,-151.0,0.000539,120]
[354862833,1740754242618,-299.90747,0.000539,120]
[354862838,1740754242628,-299.90747,0.000539,120]
[354862842,1740754242637,-501.032863,0.000539,120]
[354862843,1740754242646,-501.032863,0.000539,120]
[354862848,1740754242656,-230.165041,0.000539,110]
[354862851,1740754242666,-230.165041,0.000539,110]
[354862855,1740754242676,-1597.347059,0.000539,120]
[354862859,1740754242685,-1597.347059,0.000539,120]
[354862861,1740754242695,-151.0,0.000539,120]
[354862867,1740754242705,-415.976708,0.000539,2]
[354862869,1740754242715,-415.976708,0.000539,2]
[354862870,1740754242725,-151.0,0.000539,120]
[354862873,1740754242735,-151.0,0.000539,120]
[354862876,1740754242747,-301.516487,0.000539,120]
[354862878,1740754242756,-301.516487,0.000539,120]
[354862880,1740754242766,-378.752849,0.000539,120]
[354862882,1740754242776,-151.0,0.000539,120]
[354862883,1740754242786,-378.752849,0.000539,120]
[354862884,1740754242795,-365.455406,0.000539,120]
[354862885,1740754242804,-365.455406,0.000539,120]
[354862886,1740754242814,-153769.37449868,0.00054,120]
[354862887,1740754242886,-39018.28469175,0.00054,120]
[354862895,1740754244108,-4120.3,0.00054,120]
[354862900,1740754246567,-14324.7822321,0.0005299,10]
[354862901,1740754246580,-8120.0,0.0005299,10]
[354862902,1740754246629,-388.86494908,0.000488,120]
[354862903,1740754246640,-7756.1977679,0.0005299,10]
[354862904,1740754246651,-104595.217401,0.00054,120]
[354862905,1740754246661,-9999.432831,0.00054,120]
[354862906,1740754246671,-151.0,0.00054,120]
[354862907,1740754246681,-198.0,0.00054,120]
[354862908,1740754246691,-151.0,0.00054,120]
[354862909,1740754246701,-151.0,0.00054,120]
[354862910,1740754246711,-227.357506,0.00054,120]
[354862911,1740754246721,-227.357506,0.00054,120]
[354862912,1740754246731,-151.0,0.00054,120]
[354862913,1740754246740,-151.0,0.00054,120]
[354862914,1740754246752,-151.0,0.00054,120]
[354862915,1740754246762,-177.823027,0.00054,120]
[354862916,1740754246771,-85316.14,0.00054,30]
[354862917,1740754246782,-460.563521,0.00054,120]
[354862918,1740754246792,-460.563521,0.00054,120]
[354862919,1740754246802,-420.108685,0.00054,120]
[354862920,1740754246812,-420.108685,0.00054,120]
[354862921,1740754246822,-299.90747,0.00054,120]
[354862922,1740754246834,-299.90747,0.00054,120]
[354862923,1740754246844,-299.90747,0.00054,120]
[354862924,1740754246853,-299.90747,0.00054,120]
[354862925,1740754246863,-501.032863,0.00054,120]
[354862926,1740754246873,-501.032863,0.00054,120]
[354862927,1740754246883,-501.032863,0.00054,120]
[354862928,1740754246893,-501.032863,0.00054,120]
[354862929,1740754246902,-230.165041,0.00054,110]
[354862930,1740754246912,-230.165041,0.00054,110]
[354862931,1740754246922,-230.165041,0.00054,110]
[354862932,1740754246931,-230.165041,0.00054,110]
[354862933,1740754246942,-1597.347059,0.00054,120]
[354862934,1740754246952,-1597.347059,0.00054,120]
[354862935,1740754246962,-1597.347059,0.00054,120]
[354862936,1740754246971,-1597.347059,0.00054,120]
[354862937,1740754246982,-151.0,0.00054,120]
[354862938,1740754246992,-151.0,0.00054,120]
[354862939,1740754247006,-415.976708,0.00054,2]
[354862940,1740754247016,-415.976708,0.00054,2]
[354862941,1740754247025,-415.976708,0.00054,2]
[354862942,1740754247036,-415.976708,0.00054,2]
[354862943,1740754247046,-151.0,0.00054,120]
[354862944,1740754247056,-151.0,0.00054,120]
[354862945,1740754247066,-151.0,0.00054,120]
[354862946,1740754247076,-301.516487,0.00054,120]
[354862947,1740754247218,-301.516487,0.00054,120]
[354862948,1740754247230,-301.516487,0.00054,120]
[354862949,1740754247240,-301.516487,0.00054,120]
[354862950,1740754247251,-378.752849,0.00054,120]
[354862951,1740754247263,-378.752849,0.00054,120]
[354862952,1740754247272,-151.0,0.00054,120]
[354862953,1740754247282,-151.0,0.00054,120]
[354862954,1740754247293,-378.752849,0.00054,120]
[354862955,1740754247303,-378.752849,0.00054,120]
[354862956,1740754247314,-365.455406,0.00054,120]
[354862957,1740754247325,-365.455406,0.00054,120]
[354862958,1740754247335,-365.455406,0.00054,120]
[354862959,1740754247346,-365.455406,0.00054,120]
[354862960,1740754247356,-43307.12402672,0.00054,120]
[354862961,1740754247368,-713.148916,0.00054,120]
[354862962,1740754247379,-713.148917,0.00054,120]
[354862963,1740754247389,-1517.82084753,0.00054068,10]
[354862964,1740754247399,-160.816327,0.00054169,35]
[354862965,1740754247409,-500.0,0.00054172,2]
[354862966,1740754247418,-500.0,0.00054246,45]
[354862967,1740754247428,-593.47,0.000543,30]
[354862968,1740754247439,-1000.0,0.00054352,10]
[354862969,1740754247448,-1000.0,0.00054352,10]
[354862970,1740754247458,-502.6130963,0.00054352,2]
[354862971,1740754247469,-1000.0,0.00054352,10]
[354862972,1740754247479,-509.61459662,0.00054352,10]
[354862973,1740754247489,-1000.0,0.00054352,10]
[354862974,1740754247501,-1000.0,0.00054352,2]
[354862975,1740754247512,-1000.0,0.00054352,10]
[354862976,1740754247521,-1000.0,0.00054352,10]
[354862977,1740754247531,-506.0603965,0.00054352,10]
[354862978,1740754247540,-500.0,0.00054373,10]
[354862979,1740754247551,-500000.0,0.000544,30]
[354862980,1740754247561,-151.0,0.000544,120]
[354862981,1740754247572,-151.0,0.000544,120]
[354862982,1740754247582,-227.357506,0.000544,120]
[354862983,1740754247592,-227.357506,0.000544,120]
[354862984,1740754247602,-151.0,0.000544,120]
[354862985,1740754247612,-151.0,0.000544,120]
[354862986,1740754247622,-151.0,0.000544,120]
[354862987,1740754247633,-460.563521,0.000544,120]
[354862988,1740754247643,-460.563521,0.000544,120]
[354862989,1740754247654,-420.108685,0.000544,120]
[354862990,1740754247664,-3217.18,0.000544,30]
[354862991,1740754247675,-420.108685,0.000544,120]
[354862992,1740754247684,-4787.83,0.000544,30]
[354862993,1740754247696,-299.90747,0.000544,120]
[354862994,1740754247706,-299.90747,0.000544,120]
[354862995,1740754247716,-501.032863,0.000544,120]
[354862996,1740754247727,-501.032863,0.000544,120]
[354862997,1740754247738,-230.165041,0.000544,110]
[354862998,1740754247751,-230.165041,0.000544,110]
[354862999,1740754247762,-1597.347059,0.000544,120]
[354863000,1740754247772,-1597.347059,0.000544,120]
[354863001,1740754247783,-151.0,0.000544,120]
[354863002,1740754247793,-415.976708,0.000544,2]
[354863003,1740754247802,-415.976708,0.000544,2]
[354863004,1740754247812,-151.0,0.000544,120]
[354863005,1740754247822,-301.516487,0.000544,120]
[354863006,1740754247831,-301.516487,0.000544,120]
[354863007,1740754247841,-378.752849,0.000544,120]
[354863008,1740754247851,-166.202638,0.000544,120]
[354863009,1740754247861,-378.752853,0.000544,120]
[354863010,1740754247871,-365.455406,0.000544,120]
[354863011,1740754247881,-365.45541118,0.000544,120]
[354863012,1740754247891,-508.37126764,0.00054446,2]
[354863013,1740754247901,-500.0,0.00054473,10]
[354863014,1740754247911,-589107.46093425,0.000545,120]
[354863015,1740754248364,4000.0,0.0003,30]
[354863023,1740754373790,2043.0,0.0003,30]
[354863025,1740754430592,1600.0,0.0003,30]
[354863026,1740754527524,500.0,0.0003,120]
[354863029,1740754725401,590.0,0.0003,120]
[354863030,1740754902040,500.0,0.000301,30]
[354863044,1740755350186,-233.340904,0.00032877,2]
[354863045,1740755350209,-524.68073112,0.00034179,2]
[354863046,1740755350231,-150.0,0.00035,7]
[354863047,1740755350252,-2169.28138978,0.00035134,2]
[354863097,1740755432496,-3143.0124802,0.00035134,2]
[354863098,1740755432507,-188.33570708,0.00035234,2]
[354863099,1740755432517,-1543.00726901,0.0004,120]
[354863100,1740755432527,-390.625,0.00042432,120]
[354863101,1740755432538,-15445.22121692,0.00042944,2]
[354863107,1740755438214,-9454.77878308,0.00042944,2]
[354863108,1740755438227,-2566.89778006,0.00044838,2]
[354863109,1740755438237,-500.0,0.00044993,120]
[354863110,1740755438247,-500.0,0.00044993,120]
[354863111,1740755438257,-189.0674738,0.00044993,120]